bitfinex/quotes_ETHUSD_20220112
["timestamp","ask_amount","ask_price","bid_price","bid_amount"]
[1641976273785,0.30341054,3230.5,3230.4,3.36304697]
[1641976273982,0.30341054,3230.5,3230.4,0.84609189]
[1641976276425,0.30341054,3230.5,3230.4,1.79218378]
[1641976281694,3.40341054,3230.5,3230.4,1.79218378]
[1641976282697,3.10341054,3230.5,3230.4,1.79218378]
[1641976284030,3.70341054,3230.5,3230.4,1.79218378]
[1641976291231,3.45341054,3230.5,3230.4,1.79218378]
[1641976291426,3.40341054,3230.5,3230.4,1.79218378]
[1641976292728,3.40341054,3230.5,3230.4,1.69218378]
[1641976292929,3.40341054,3230.5,3230.4,0.94609189]
[1641976293131,3.70341054,3230.5,3230.4,1.69218378]
[1641976294531,3.70677555,3230.5,3230.4,1.69218378]
[1641976295583,3.10677555,3230.5,3230.4,4.48327038]
[1641976295982,2.83127555,3230.5,3230.4,4.48327038]
[1641976296182,1.51137555,3230.5,3230.4,5.48327038]
[1641976296781,0.449,3231.7,3230.4,5.48327038]
[1641976296982,1.9965924,3231.7,3230.5,6.10165336]
[1641976297183,0.00454739,3231.3,3231.2,1.53421842]
[1641976297985,0.00454739,3231.3,3231.2,2.80865981]
[1641976298383,0.00454739,3231.3,3231.2,3.5547517]
[1641976299032,0.00454739,3231.3,3231.2,2.02053328]
[1641976299237,0.00454739,3231.3,3231.2,0.74609189]
[1641976299635,0.45354739,3231.3,3231.2,0.74609189]
[1641976302039,3.55354739,3231.3,3231.2,0.74609189]
[1641976302479,3.55354739,3231.3,3231.2,1.69218378]
[1641976302882,0.45354739,3231.3,3231.2,1.69218378]
[1641976303486,0.75354739,3231.3,3231.2,1.69218378]
[1641976305789,0.75354739,3231.3,3230.7,1.2123]
[1641976305790,0.77407,3231.1,3230.7,1.2123]
[1641976305991,0.449,3231.0,3230.4,3.6052]
[1641976306242,0.449,3231.0,3229.9,4.97771528]
[1641976306243,0.77418,3230.8,3229.9,4.97771528]
[1641976306429,0.749,3230.7,3229.9,4.97771528]
[1641976306630,0.749,3230.7,3230.0,0.00284211]
[1641976306631,1.05013685,3230.7,3230.0,0.00284211]
[1641976307029,1.38384432,3230.6,3230.0,0.00284211]
[1641976307332,0.449,3230.5,3230.0,0.00284211]
[1641976307532,0.77417,3230.4,3230.0,0.00284211]
[1641976307734,1.9973399,3230.4,3230.0,0.00284211]
[1641976307932,0.3,3230.3,3230.0,0.00284211]
[1641976308333,0.6,3230.3,3230.0,0.00284211]
[1641976309534,0.3,3230.3,3230.2,0.00731187]
[1641976309982,0.7740554,3230.5,3230.2,0.00901714]
[1641976310186,1.0740554,3230.5,3230.2,0.00901714]
[1641976310387,1.3740554,3230.5,3230.3,0.00113684]
[1641976310887,1.40452048,3230.5,3230.3,0.00113684]
[1641976311689,1.10452048,3230.5,3230.3,0.00113684]
[1641976311888,1.40452048,3230.5,3230.3,0.00113684]
[1641976313928,1.3740554,3230.5,3230.3,0.00113684]
[1641976314328,0.7740554,3230.5,3230.3,0.00113684]
[1641976315537,1.3740554,3230.5,3230.3,0.00113684]
[1641976316738,0.449,3230.4,3230.3,0.00113684]
[1641976317136,0.749,3230.4,3230.3,0.00113684]
[1641976319392,0.749,3230.4,3230.3,0.00844401]
[1641976320897,1.749,3230.4,3230.3,0.00844401]
[1641976321334,0.749,3230.4,3230.3,0.00844401]
[1641976322132,4.63718465,3230.4,3230.3,0.00844401]
[1641976322334,4.41147465,3230.4,3230.3,0.00844401]
[1641976322534,5.41147465,3230.4,3230.3,0.00844401]
[1641976322734,1.25019824,3230.0,3229.9,0.00371528]
[1641976323034,1.85019824,3230.0,3229.9,0.00598898]
[1641976323735,1.55019824,3230.0,3229.9,0.00598898]
[1641976324237,1.85019824,3230.0,3229.9,0.00598898]
[1641976324636,2.85019824,3230.0,3229.9,0.00598898]
[1641976324835,1.85019824,3230.0,3229.9,0.00598898]
[1641976325088,2.85019824,3230.0,3229.9,0.00598898]
[1641976326383,1.6,3230.0,3229.9,0.00598898]
[1641976326583,0.6,3230.0,3229.9,0.00598898]
[1641976326788,1.6,3230.0,3229.9,0.00598898]
[1641976327384,1.55,3230.0,3229.9,0.00598898]
[1641976328185,0.999,3230.0,3229.9,0.00598898]
[1641976328386,1.999,3230.0,3229.9,0.00598898]
[1641976330847,0.999,3230.0,3229.9,0.00598898]
[1641976331448,0.774283,3230.1,3229.9,0.00598898]
[1641976331847,0.774283,3230.1,3230.0,0.00170527]
[1641976332889,1.074283,3230.1,3230.0,0.00170527]
[1641976333691,1.374283,3230.1,3230.0,0.00170527]
[1641976334895,1.074283,3230.1,3230.0,0.00170527]
[1641976335694,0.05,3230.1,3230.0,0.00170527]
[1641976335895,1.90474728,3230.4,3230.0,0.00170527]
[1641976336734,1.87337597,3230.4,3230.1,1.20618843]
[1641976336933,1.91266779,3230.4,3230.1,1.20618843]
[1641976337132,0.3,3230.3,3230.1,1.20618843]
[1641976337634,0.3,3230.3,3230.0,0.00170527]
[1641976340488,0.3,3230.3,3230.0,1.28766338]
[1641976340889,0.123901,3231.7,3230.1,0.00113685]
[1641976341090,0.123901,3231.7,3230.1,2.09903685]
[1641976341289,0.123901,3231.7,3230.2,1.65994808]
[1641976341290,0.00454738,3231.1,3230.2,1.65994808]
[1641976341490,0.00454738,3231.1,3230.6,0.77378]
[1641976341690,0.00397896,3231.0,3230.6,0.77378]
[1641976342090,0.00341054,3230.9,3230.7,1.24363257]
[1641976342489,0.7737979,3231.6,3230.8,1.45054353]
[1641976342889,0.00682108,3231.5,3230.8,1.45054353]
[1641976343289,0.00625265,3231.4,3230.8,1.45054353]
[1641976343490,0.7738416,3231.3,3230.8,1.45054353]
[1641976343740,1.07952583,3231.3,3230.8,1.45054353]
[1641976343935,0.00511581,3231.2,3230.8,1.45054353]
[1641976344336,0.00454738,3231.1,3230.8,1.45054353]
[1641976344738,0.00397896,3231.0,3230.8,1.45054353]
[1641976345145,0.00341054,3230.9,3230.8,1.45054353]
[1641976346147,0.00341054,3230.9,3230.7,1.24363257]
[1641976346543,0.7738911,3231.2,3230.7,1.24363257]
[1641976346544,0.00284211,3230.8,3230.7,1.24363257]
[1641976347346,0.00284211,3230.8,3230.7,2.68046567]
[1641976347588,0.00284211,3230.8,3230.7,5.0554532]
[1641976349191,0.00284211,3230.8,3230.7,3.68046567]
[1641976354654,0.00284211,3230.8,3230.7,6.02366608]
[1641976355114,0.00284211,3230.8,3230.7,3.68046567]
[1641976355514,0.00284211,3230.8,3230.7,6.0135565]
[1641976355716,0.00284211,3230.8,3230.7,6.03760084]
[1641976356916,0.00284211,3230.8,3230.7,3.68046567]
[1641976357118,0.00284211,3230.8,3230.7,6.04402576]
[1641976357916,0.00284211,3230.8,3230.7,8.69402576]
[1641976358116,0.00284211,3230.8,3230.7,8.99402576]
[1641976358840,0.00284211,3230.8,3230.7,6.34402576]
[1641976363798,0.00284211,3230.8,3230.7,6.04402576]
[1641976365604,0.00284211,3230.8,3230.7,3.68046567]
[1641976365805,0.00284211,3230.8,3230.7,6.02284008]
[1641976366639,0.00284211,3230.8,3230.7,6.08619361]
[1641976367244,1.123841,3233.2,3230.8,7.85]
[1641976367442,1.123841,3233.2,3232.0,0.77333]
[1641976367443,0.8972693,3233.2,3232.0,0.77333]
[1641976367643,0.123841,3233.2,3232.1,1.2371]
[1641976368041,0.123841,3233.2,3232.1,2.2371]
[1641976368242,0.123841,3233.2,3232.9,1.43534057]
[1641976368445,0.123841,3233.2,3232.8,1.40381008]
[1641976368846,0.123841,3233.2,3232.4,0.77335]
[1641976369446,0.123841,3233.2,3232.5,2.5157779]
[1641976370299,0.123841,3233.2,3232.6,0.7733]
[1641976370501,0.123841,3233.2,3232.9,1.53739665]
[1641976370801,0.123841,3233.2,3232.7,5.13049899]
[1641976371003,0.123841,3233.2,3232.7,2.69558878]
[1641976371802,0.123841,3233.2,3232.8,2.58859228]
[1641976372402,0.123841,3233.2,3232.7,2.69558878]
[1641976373003,0.123841,3233.2,3232.8,2.54999228]
[1641976373204,0.123841,3233.2,3232.8,2.43273682]
[1641976374555,0.123841,3233.2,3233.1,1.49509987]
[1641976374759,0.123841,3233.2,3232.7,2.69558878]
[1641976374957,0.13748317,3233.2,3232.7,2.69558878]
[1641976375960,0.13748317,3233.2,3233.1,1.10819346]
[1641976376262,0.01364217,3233.2,3233.1,1.10819346]
[1641976376661,0.01364217,3233.2,3232.7,2.69558878]
[1641976377060,0.01307374,3233.1,3232.7,2.69558878]
[1641976377496,0.01250532,3233.0,3232.7,2.69558878]
[1641976377900,0.0119369,3232.9,3232.8,3.80420807]
[1641976378104,0.0119369,3232.9,3232.8,4.80420807]
[1641976378301,0.0119369,3232.9,3232.8,3.80420807]
[1641976380505,0.0119369,3232.9,3232.8,1.36669948]
[1641976381747,0.0119369,3232.9,3232.7,1.2183]
[1641976382146,0.449,3233.1,3232.5,3.8522]
[1641976382147,0.01136847,3232.8,3232.5,3.8522]
[1641976382345,0.7735548,3232.7,3232.5,3.8522]
[1641976382545,0.6,3232.6,3232.2,1.53954393]
[1641976382746,0.61023163,3232.6,3232.1,1.34427761]
[1641976382947,0.0096632,3232.5,3232.1,1.34427761]
[1641976383246,0.00909478,3232.4,3232.1,1.34427761]
[1641976383647,0.00852636,3232.3,3232.2,6.74809582]
[1641976383845,0.00852636,3232.3,3232.2,1.44809582]
[1641976384047,0.00852636,3232.3,3232.2,3.95961206]
[1641976385094,0.00852636,3232.3,3232.2,4.95961206]
[1641976385695,0.00852636,3232.3,3232.2,3.95961206]
[1641976393296,0.00852636,3232.3,3232.2,5.25961206]
[1641976394702,0.00852636,3232.3,3232.2,4.95961206]
[1641976395098,0.00852636,3232.3,3232.2,5.73296206]
[1641976397747,0.00852636,3232.3,3232.2,2.44809582]
[1641976400001,0.00852636,3232.3,3232.2,3.22143582]
[1641976400795,0.00852636,3232.3,3232.2,3.52143582]
[1641976402401,0.00852636,3232.3,3232.2,2.74809582]
[1641976402603,0.00852636,3232.3,3232.2,1.44809582]
[1641976403201,0.00852636,3232.3,3232.2,2.44809582]
[1641976403402,0.00852636,3232.3,3232.2,2.74809582]
[1641976405146,0.00852636,3232.3,3232.2,7.91709582]
[1641976405947,0.00852636,3232.3,3232.2,2.74809582]
[1641976406148,0.00852636,3232.3,3232.2,7.91709582]
[1641976407047,0.00852636,3232.3,3232.2,7.61709582]
[1641976407249,0.00852636,3232.3,3232.2,6.61709582]
[1641976408095,0.00852636,3232.3,3232.2,1.44809582]
[1641976408900,0.00852636,3232.3,3232.2,2.74809582]
[1641976414047,1.0859791,3233.1,3232.2,2.74809582]
[1641976414449,0.01250532,3233.0,3232.2,2.74809582]
[1641976414848,0.0119369,3232.9,3232.2,2.74809582]
[1641976415301,1.03482617,3233.1,3232.2,2.74809582]
[1641976415501,1.03482617,3233.1,3232.3,0.00284211]
[1641976415698,0.00113685,3233.0,3232.3,0.00284211]
[1641976420150,3.26746572,3233.0,3232.3,0.00284211]
[1641976420351,4.37736305,3233.0,3232.3,0.00284211]
[1641976420554,3.56746572,3233.0,3232.1,0.00397896]
[1641976421555,4.34104572,3233.0,3232.1,0.00397896]
[1641976421752,0.7735793,3232.7,3232.1,0.00397896]
[1641976422155,0.3,3232.6,3232.1,0.00397896]
[1641976422692,3.82939774,3232.8,3232.1,0.00397896]
[1641976422894,0.3,3232.7,3232.1,0.00397896]
[1641976423691,0.7736207,3232.5,3232.1,0.00397896]
[1641976424096,1.0736207,3232.5,3232.1,0.00397896]
[1641976427647,0.01297065,3232.2,3231.0,1.0]
[1641976427844,0.01297065,3232.2,3230.7,1.1913]
[1641976427845,0.449,3232.1,3230.7,1.1913]
[1641976428045,0.449,3232.1,3231.1,0.00568424]
[1641976428046,0.7738622,3231.5,3231.1,0.00568424]
[1641976428246,0.3,3231.4,3231.1,0.00568424]
[1641976429047,0.749,3231.5,3231.1,0.00568424]
[1641976429246,0.3,3231.5,3231.1,0.00568424]
[1641976429650,1.2227538,3231.9,3231.1,0.00568424]
[1641976429651,1.5227538,3231.9,3231.1,0.00568424]
[1641976429848,0.749,3231.9,3231.1,0.00568424]
[1641976430304,1.5226947,3231.9,3231.1,0.00568424]
[1641976434242,4.6226947,3231.9,3231.1,0.00568424]
[1641976437050,3.1,3231.9,3231.1,0.00568424]
[1641976437499,3.1,3231.9,3231.1,0.95478424]
[1641976437896,3.1,3231.9,3231.2,0.00511581]
[1641976438098,3.1,3231.9,3231.2,2.64125056]
[1641976438496,3.1,3231.9,3231.3,1.00454739]
[1641976438901,3.1,3231.9,3231.5,0.77352]
[1641976439297,3.1,3231.9,3231.6,0.00284212]
[1641976441104,3.1,3231.9,3231.3,0.00454739]
[1641976443352,3.4,3231.9,3231.3,0.00454739]
[1641976444154,3.4,3231.9,3231.5,0.77352]
[1641976444552,3.1,3231.9,3231.6,0.00284212]
[1641976445202,3.1,3231.9,3231.3,0.00454739]
[1641976445599,3.4,3231.9,3231.3,0.00454739]
[1641976446100,3.4,3231.9,3231.2,0.77870581]
[1641976446502,3.4,3231.9,3231.3,0.00454739]
[1641976447105,3.4,3231.9,3231.2,0.00511581]
[1641976447704,4.1736914,3231.9,3231.2,0.00511581]
[1641976448102,3.4,3231.9,3231.2,0.00511581]
[1641976448304,3.4,3231.9,3231.2,0.77872581]
[1641976448750,3.4,3231.9,3231.3,0.00454739]
[1641976450357,4.1736643,3231.9,3231.2,0.00511581]
[1641976451358,3.4,3231.9,3231.2,0.77872581]
[1641976451759,3.4,3231.9,3231.3,0.00454739]
[1641976453800,3.1,3231.9,3231.3,0.00454739]
[1641976454800,3.4,3231.9,3231.3,0.00454739]
[1641976455410,3.4,3231.9,3231.4,0.77355]
[1641976455804,3.4,3231.9,3231.5,0.00341054]
[1641976456446,3.4,3231.9,3231.5,1.00341054]
[1641976456848,3.4,3231.9,3231.6,0.00284212]
[1641976457450,3.4,3231.9,3231.2,0.00511581]
[1641976457649,3.1,3231.9,3231.2,0.30511581]
[1641976458049,3.1,3231.9,3231.3,0.00454739]
[1641976458249,3.1,3231.9,3231.3,2.64057737]
[1641976458649,3.1,3231.9,3231.4,1.00397897]
[1641976459051,3.1,3231.9,3231.5,0.00341054]
[1641976459451,3.1,3231.9,3231.3,0.00454739]
[1641976463404,3.1,3231.9,3231.5,0.77353]
[1641976463747,3.1,3231.9,3231.6,0.00284212]
[1641976464347,3.1,3231.9,3231.6,2.63889712]
[1641976464551,3.1,3231.9,3231.7,1.0]
[1641976464749,3.1,3231.9,3231.7,1.0022737]
[1641976464950,3.1,3231.9,3231.8,0.00170527]
[1641976467359,3.1,3231.9,3231.6,0.00284212]
[1641976468012,3.1,3231.9,3231.6,2.63870338]
[1641976468209,3.1,3231.9,3231.7,1.0]
[1641976468409,3.1,3231.9,3231.7,1.0022737]
[1641976468610,3.1,3231.9,3231.8,0.00170527]
[1641976470117,3.1,3231.9,3231.6,0.00284212]
[1641976470517,3.1,3231.9,3231.6,2.63867354]
[1641976470918,3.1,3231.9,3231.7,0.0022737]
[1641976471118,3.1,3231.9,3231.7,1.0022737]
[1641976471559,3.1,3231.9,3231.8,0.00170527]
[1641976472361,3.1,3231.9,3231.6,0.00284212]
[1641976472965,3.1,3231.9,3231.6,2.63864333]
[1641976473164,3.1,3231.9,3231.7,1.0]
[1641976473363,3.1,3231.9,3231.7,1.0022737]
[1641976473563,3.1,3231.9,3231.8,0.00170527]
[1641976474262,3.1,3231.9,3231.6,0.00284212]
[1641976474665,3.1,3231.9,3231.6,2.63867352]
[1641976475117,3.1,3231.9,3231.7,1.0022737]
[1641976475519,3.1,3231.9,3231.8,0.00170527]
[1641976475718,3.4,3231.9,3231.8,0.00170527]
[1641976476716,3.4,3231.9,3231.6,0.00284212]
[1641976477519,3.4,3231.9,3231.6,2.6386989]
[1641976477716,3.4,3231.9,3231.7,1.0]
[1641976477917,3.4,3231.9,3231.7,1.0022737]
[1641976478219,3.4,3231.9,3231.8,0.00170527]
[1641976479250,3.4,3231.9,3231.6,0.00284212]
[1641976479650,3.4,3231.9,3231.6,2.63869605]
[1641976480053,3.4,3231.9,3231.7,1.0022737]
[1641976480454,3.4,3231.9,3231.8,0.00170527]
[1641976480856,3.4,3231.9,3231.6,0.00284212]
[1641976481454,3.4,3231.9,3231.6,2.63872026]
[1641976481653,3.4,3231.9,3231.7,1.0]
[1641976481853,3.4,3231.9,3231.7,1.0022737]
[1641976482055,3.4,3231.9,3231.8,0.00170527]
[1641976482507,3.4,3231.9,3231.6,0.00284212]
[1641976483102,3.4,3231.9,3231.6,2.63869499]
[1641976483507,3.4,3231.9,3231.7,1.0022737]
[1641976483905,3.4,3231.9,3231.8,0.00170527]
[1641976484506,3.1,3231.9,3231.8,2.63755814]
[1641976484706,3.1,3231.9,3231.8,3.63755814]
[1641976485106,3.1,3231.9,3231.8,1.00170527]
[1641976485307,3.1,3231.9,3231.8,0.00170527]
[1641976485508,3.1,3231.9,3231.8,1.00170527]
[1641976485707,3.1,3231.9,3231.8,0.00170527]
[1641976485908,3.1,3231.9,3231.8,3.63755814]
[1641976486349,3.1,3231.9,3231.8,2.63755814]
[1641976486749,3.1,3231.9,3231.8,3.63755814]
[1641976488156,3.1,3231.9,3231.8,1.00170527]
[1641976488555,3.1,3231.9,3231.8,0.00170527]
[1641976488956,3.1,3231.9,3231.4,0.00397897]
[1641976489357,3.4,3231.9,3231.3,0.00454739]
[1641976490009,3.4,3231.9,3231.5,2.63599359]
[1641976490407,3.4,3231.9,3231.6,1.00284212]
[1641976490809,0.7736919,3231.8,3231.7,0.0022737]
[1641976491208,0.7736919,3231.8,3231.5,1.0]
[1641976491209,0.7736919,3231.8,3231.5,1.00341054]
[1641976491412,0.7736919,3231.8,3231.6,0.00284212]
[1641976491908,0.7736919,3231.8,3231.2,0.00511581]
[1641976492608,1.5474019,3231.8,3231.2,0.00511581]
[1641976492807,1.5474019,3231.8,3231.3,2.63611455]
[1641976493009,1.5474019,3231.8,3231.4,1.0]
[1641976493215,1.5474019,3231.8,3231.4,1.00397897]
[1641976493409,4.76237383,3231.8,3231.5,0.00341054]
[1641976493609,3.0952181,3231.7,3231.5,0.00341054]
[1641976493861,0.7738,3231.6,3231.4,0.00397897]
[1641976494065,1.5475686,3231.6,3231.4,0.00397897]
[1641976494560,0.3,3231.5,3231.3,0.00454739]
[1641976495665,0.3,3231.5,3230.8,0.00738951]
[1641976496064,0.7737985,3231.3,3230.8,0.00738951]
[1641976496464,0.3,3231.3,3230.8,0.00738951]
[1641976496864,1.54764,3231.7,3230.8,0.00738951]
[1641976496865,2.86213013,3231.6,3230.9,2.6363976]
[1641976497065,0.7738135,3231.3,3231.0,1.0]
[1641976497265,0.7738135,3231.3,3231.0,1.00625266]
[1641976497511,1.0738135,3231.3,3231.0,1.00625266]
[1641976498607,1.0738135,3231.3,3231.0,0.00625266]
[1641976499008,1.0738135,3231.3,3230.8,0.00738951]
[1641976499412,0.3,3231.3,3230.8,0.00738951]
[1641976499807,0.3,3231.4,3230.8,0.00738951]
[1641976500215,0.3,3231.4,3230.9,2.63633813]
[1641976500612,0.3,3231.4,3231.0,0.00625266]
[1641976501355,0.7738128,3231.3,3231.0,0.00625266]
[1641976501955,0.7738128,3231.3,3230.8,0.00738951]
[1641976502957,0.7738128,3231.3,3230.9,2.63638823]
[1641976503456,0.7738128,3231.3,3231.0,0.00625266]
[1641976504261,0.7738128,3231.3,3230.8,0.00738951]
[1641976504656,0.80722807,3231.3,3230.8,0.00738951]
[1641976505310,0.77387,3231.2,3230.9,2.63640778]
[1641976505508,1.10932338,3231.2,3230.9,2.63640778]
[1641976505708,0.7738632,3231.1,3231.0,0.00625266]
[1641976506307,0.80606142,3231.1,3230.8,0.00738951]
[1641976506508,0.7738632,3231.1,3230.8,0.00738951]
[1641976513904,2.81166948,3231.0,3230.4,0.0096632]
[1641976514104,0.7739699,3230.8,3230.4,0.0096632]
[1641976514303,0.3,3230.7,3230.3,0.01023162]
[1641976514515,3.16327022,3230.7,3230.1,0.01136847]
[1641976515507,3.16327022,3230.7,3230.0,0.01193689]
[1641976515707,2.3221888,3230.5,3230.0,0.01193689]
[1641976515906,2.35673244,3230.5,3230.0,0.01193689]
[1641976516108,0.6,3230.4,3230.0,0.01193689]
[1641976516557,0.77409,3230.3,3230.0,0.01193689]
[1641976516756,4.64802,3230.7,3230.0,0.01193689]
[1641976516757,3.1,3230.7,3230.0,0.01193689]
[1641976517158,3.1,3230.7,3230.0,1.84322689]
[1641976517361,3.1,3230.7,3230.2,0.01272616]
[1641976517761,3.1,3230.7,3230.3,2.33134162]
[1641976517961,3.1,3230.7,3230.4,1.38554276]
[1641976518161,3.1,3230.7,3230.4,2.39520596]
[1641976518361,3.1,3230.7,3230.5,0.00909478]
[1641976518962,3.1,3230.7,3230.5,2.64605022]
[1641976519162,3.1,3230.7,3230.6,1.0]
[1641976519362,3.1,3230.7,3230.6,3.7071953]
[1641976520014,3.1,3230.7,3230.6,6.34415074]
[1641976522407,4.4139806,3231.9,3230.6,6.34415074]
[1641976522408,3.6403,3231.9,3230.7,7.85]
[1641976522611,4.7945,3232.2,3231.8,1.15549167]
[1641976522809,7.7242,3232.6,3231.9,2.42236881]
[1641976523008,3.8105,3232.6,3231.9,2.42350566]
[1641976523209,0.00227369,3232.5,3232.0,1.19979521]
[1641976523613,0.00170527,3232.4,3232.0,1.19979521]
[1641976524063,0.77349,3232.6,3232.0,1.19979521]
[1641976524064,0.00113685,3232.3,3232.0,1.19979521]
[1641976525064,0.00113685,3232.3,3232.1,2.45523601]
[1641976525765,3.10113685,3232.3,3232.1,2.45523601]
[1641976526666,0.00113685,3232.3,3232.1,2.45523601]
[1641976528511,0.00113685,3232.3,3232.0,1.19979521]
[1641976530523,0.00796921,3232.2,3232.0,1.19979521]
[1641976531756,0.00796921,3232.2,3231.9,1.13513685]
[1641976531757,0.00796921,3232.2,3231.9,0.00113685]
[1641976531955,0.773685,3232.1,3231.9,0.00113685]
[1641976532157,1.55533921,3232.2,3231.2,0.00511581]
[1641976532357,0.33192749,3232.1,3231.2,0.00511581]
[1641976532656,3.02611313,3232.2,3231.4,1.37409727]
[1641976533159,1.54739,3232.0,3231.5,0.00341054]
[1641976533557,0.3,3231.8,3231.5,0.00341054]
[1641976533756,0.7737,3231.7,3231.5,0.00341054]
[1641976533956,1.0737,3231.7,3231.5,0.00341054]
[1641976536009,0.3,3231.7,3231.5,0.00341054]
[1641976537611,0.3,3231.7,3231.5,1.54434324]
[1641976538009,0.3,3231.7,3231.6,0.00284212]
[1641976539859,0.7736262,3232.0,3231.6,0.00284212]
[1641976540260,0.00796921,3231.7,3231.6,0.00284212]
[1641976540760,0.00796921,3231.7,3231.5,0.00341054]
[1641976542364,0.00796921,3231.7,3231.5,1.00341054]
[1641976542619,0.00796921,3231.7,3231.5,0.00341054]
[1641976542818,0.00796921,3231.7,3231.6,0.00284212]
[1641976543019,0.00796921,3231.7,3231.5,0.00341054]
[1641976545827,0.00796921,3231.7,3231.4,0.00397897]
[1641976546255,0.00796921,3231.7,3231.4,1.52456186]
[1641976546655,0.00796921,3231.7,3231.5,0.00341054]
[1641976549562,3.85020417,3231.7,3231.5,0.00341054]
[1641976549763,1.42686921,3231.7,3230.2,4.9969]
[1641976550031,1.42686921,3231.7,3230.3,0.00682108]
[1641976550032,6.28930417,3231.7,3230.3,0.00682108]
[1641976550421,2.3217321,3231.2,3230.6,1.2591636]
[1641976550625,5.28930417,3231.7,3230.6,1.2591636]
[1641976550626,4.31940417,3231.7,3230.6,1.2591636]
[1641976550821,4.31940417,3231.7,3230.7,0.00454739]
[1641976550822,1.01743,3231.0,3230.7,0.00454739]
[1641976551024,1.74503,3231.0,3230.7,0.00454739]
[1641976551431,1.74503,3231.0,3230.0,0.00852635]
[1641976551722,1.12034033,3230.7,3230.0,0.00852635]
[1641976551923,1.12034033,3230.7,3230.1,1.22563689]
[1641976552323,1.12034033,3230.7,3230.2,0.00738951]
[1641976552524,2.87476339,3230.9,3230.2,0.00738951]
[1641976552724,0.77402,3230.8,3230.2,0.00738951]
[1641976552923,0.9711,3231.0,3230.2,0.00738951]
[1641976552924,3.16286759,3230.7,3230.2,0.00738951]
[1641976553124,0.449,3230.8,3230.0,0.00852635]
[1641976553324,3.23267887,3230.7,3230.0,0.00852635]
[1641976553526,0.449,3230.6,3230.0,0.00852635]
[1641976553760,0.7742976,3230.3,3230.0,0.00852635]
[1641976553961,3.6059694,3230.2,3230.0,0.00852635]
[1641976554158,2.98089926,3230.1,3229.8,4.78e-06]
[1641976554360,2.98089926,3230.1,3229.0,1.51540266]
[1641976554361,1.22333,3230.0,3229.0,1.51540266]
[1641976554560,3.40447088,3229.9,3228.6,1.51540266]
[1641976554761,0.37770011,3229.3,3229.1,0.00511582]
[1641976554961,1.22980011,3229.3,3229.1,0.00511582]
[1641976555866,1.22980011,3229.3,3229.0,0.00568424]
[1641976558815,1.22980011,3229.3,3229.0,2.43257877]
[1641976559017,0.37770011,3229.3,3229.0,0.00568424]
[1641976560216,0.00796921,3229.2,3229.0,0.00568424]
[1641976567814,0.81206921,3229.2,3229.0,0.00568424]
[1641976568114,0.81206921,3229.2,3228.9,0.00625266]
[1641976569771,0.77444,3229.1,3228.9,0.00625266]
[1641976569969,0.77444,3229.1,3228.3,0.0096632]
[1641976570170,0.81206921,3229.2,3228.2,0.01023163]
[1641976570976,1.43587521,3228.9,3228.2,0.01023163]
[1641976571172,0.77451,3228.9,3228.2,0.01023163]
[1641976571374,2.11206921,3229.2,3228.2,0.01023163]
[1641976571375,0.81206921,3229.2,3228.4,1.21221919]
[1641976571573,0.81206921,3229.2,3228.2,0.01023163]
[1641976571772,0.81206921,3229.2,3228.5,0.00852636]
[1641976571974,0.81206921,3229.2,3228.2,0.01023163]
[1641976572175,1.93025097,3229.2,3228.2,0.01023163]
[1641976572374,0.77444,3229.1,3228.2,0.01023163]
[1641976573409,5.02449,3228.9,3227.7,3.8182]
[1641976573609,5.02449,3228.9,3227.0,10.78183398]
[1641976573610,0.01204423,3228.7,3227.2,2.45360266]
[1641976573807,0.7747437,3228.4,3227.8,0.00227369]
[1641976574008,0.77475,3228.1,3227.8,0.00227369]
[1641976574207,2.29856,3228.3,3227.8,0.00227369]
[1641976574208,0.449,3228.0,3227.8,0.00227369]
[1641976574410,0.449,3227.9,3227.8,0.00227369]
[1641976574608,2.84827341,3227.9,3227.8,0.00227369]
[1641976574810,3.14827341,3227.9,3227.8,0.00227369]
[1641976575011,3.14827341,3227.9,3227.2,0.00568423]
[1641976575213,1.54984,3227.6,3227.2,0.00568423]
[1641976575411,1.54984,3227.6,3226.0,6.16720398]
[1641976575412,2.92144,3227.6,3226.5,0.0096632]
[1641976575715,3.22333362,3227.5,3226.5,0.0096632]
[1641976576112,3.52333362,3227.5,3226.7,1.34598796]
[1641976576366,3.97233362,3227.5,3226.7,1.34598796]
[1641976576566,3.97233362,3227.5,3226.8,0.00795792]
[1641976576769,0.7749,3227.2,3226.8,0.00795792]
[1641976578167,0.449,3227.1,3226.8,0.00795792]
[1641976578369,2.79218044,3227.0,3226.8,0.00795792]
[1641976578567,2.79218044,3227.0,3225.8,0.123918]
[1641976578568,0.449,3226.9,3226.0,0.01250531]
[1641976578770,0.7751,3226.5,3225.9,0.01307374]
[1641976579567,0.5535,3226.6,3226.4,1.33770215]
[1641976579768,1.55019,3227.1,3226.4,1.33770215]
[1641976579769,0.449,3227.1,3226.4,1.33770215]
[1641976580020,0.449,3227.1,3226.5,0.0096632]
[1641976580211,0.45696921,3227.1,3226.5,0.0096632]
[1641976580613,0.75696921,3227.1,3226.5,0.0096632]
[1641976580813,0.33478034,3227.0,3226.5,0.0096632]
[1641976582217,0.63478034,3227.0,3226.5,0.0096632]
[1641976582418,0.33478034,3227.0,3226.5,0.0096632]
[1641976582619,0.63478034,3227.0,3226.5,0.0096632]
[1641976582815,0.33478034,3227.0,3226.5,0.0096632]
[1641976583016,2.87668018,3227.0,3226.5,0.0096632]
[1641976583316,1.54994,3227.4,3226.5,0.0096632]
[1641976583317,3.51698333,3227.3,3226.5,0.0096632]
[1641976583518,0.749,3227.3,3226.5,0.0096632]
[1641976584160,3.61897635,3227.3,3226.5,0.0096632]
[1641976584363,0.77499,3227.1,3226.5,0.0096632]
[1641976584565,0.749,3227.1,3226.5,0.0096632]
[1641976584761,1.52395,3227.1,3226.5,0.0096632]
[1641976586067,2.85809629,3227.0,3226.5,0.0096632]
[1641976586570,0.775,3226.8,3226.5,0.0096632]
[1641976586867,1.075,3226.8,3226.5,0.0096632]
[1641976587713,2.85809629,3227.0,3226.9,1.25]
[1641976587911,0.66178538,3226.8,3226.5,0.0096632]
[1641976588110,0.36178538,3226.8,3226.5,0.0883483]
[1641976588310,1.13678538,3226.8,3226.5,0.0883483]
[1641976588513,1.13678538,3226.8,3226.6,0.00909477]
[1641976589310,2.21180538,3226.8,3226.6,0.00909477]
[1641976590720,2.98687538,3226.8,3226.6,0.00909477]